bitfinex-derivatives/quotes_BTCF0:USTF0_20210102
["timestamp","ask_amount","ask_price","bid_price","bid_amount"]
[1609554594414,0.18043158,29395.0,29394.0,6.07553158]
[1609554594615,0.17265,29396.0,29394.0,6.07589893]
[1609554594815,0.4174071,29403.0,29394.0,6.07589893]
[1609554595015,0.1424071,29403.0,29395.0,0.00036733]
[1609554595218,0.12773,29403.0,29395.0,0.00036733]
[1609554595416,0.01466975,29405.0,29395.0,0.00036733]
[1609554595616,0.01466975,29405.0,29402.0,4.458]
[1609554595815,0.01466975,29405.0,29403.0,1.0]
[1609554596117,0.01466975,29405.0,29404.0,0.18079886]
[1609554596316,0.01466975,29405.0,29404.0,1.18079886]
[1609554597917,0.44269143,29406.0,29404.0,1.18079886]
[1609554598318,0.44269143,29406.0,29405.0,0.00036719]
[1609554600020,0.73342108,29410.0,29405.0,0.00036719]
[1609554600220,0.73342108,29410.0,29409.0,4.98853158]
[1609554600420,0.73342108,29410.0,29409.0,5.98853158]
[1609554600621,0.73342108,29410.0,29409.0,5.98889873]
[1609554600922,0.18043158,29418.0,29409.0,5.98889873]
[1609554601522,0.18043158,29418.0,29410.0,0.00036715]
[1609554602124,0.18043158,29418.0,29417.0,5.84003158]
[1609554602524,0.73393251,29423.0,29417.0,5.84039873]
[1609554602725,0.73393251,29423.0,29417.0,6.84039873]
[1609554603127,0.73393251,29423.0,29418.0,0.00036711]
[1609554603526,0.73432811,29427.0,29418.0,0.00036711]
[1609554604126,0.73432811,29427.0,29426.0,0.18043158]
[1609554604527,0.18043158,29429.0,29426.0,0.18043158]
[1609554604727,0.18043158,29429.0,29428.0,5.5631]
[1609554610536,0.18043158,29429.0,29426.0,0.18043158]
[1609554610733,0.29537158,29429.0,29426.0,0.18043158]
[1609554612035,0.29537158,29429.0,29420.0,3.8227]
[1609554612235,0.11494,29429.0,29422.0,0.18043158]
[1609554614239,0.18043158,29423.0,29422.0,0.18043158]
[1609554614439,0.30693158,29423.0,29422.0,0.18043158]
[1609554618645,0.30693158,29423.0,29422.0,1.18043158]
[1609554619046,0.30693158,29423.0,29422.0,0.18043158]
[1609554623851,0.30693158,29423.0,29422.0,0.18079863]
[1609554624054,0.30693158,29423.0,29422.0,1.18079863]
[1609554624652,0.30693158,29423.0,29422.0,0.18079863]
[1609554629961,0.30693158,29423.0,29422.0,0.00036705]
[1609554630363,0.30693158,29423.0,29418.0,0.00036711]
[1609554630560,4.98763158,29423.0,29418.0,0.00036711]
[1609554630861,0.30693158,29423.0,29412.0,0.04052186]
[1609554631061,4.8534,29420.0,29419.0,0.00036713]
[1609554631262,4.8534,29420.0,29413.0,0.04052245]
[1609554631462,4.8534,29420.0,29419.0,0.00036716]
[1609554631862,4.8534,29420.0,29414.0,0.00036716]
[1609554632062,4.8534,29420.0,29407.0,4.2027]
[1609554632063,4.9544,29420.0,29419.0,0.00036718]
[1609554632266,5.13483158,29420.0,29415.0,0.0003672]
[1609554632463,5.13524545,29420.0,29419.0,0.0003672]
[1609554632764,5.13524545,29420.0,29408.0,0.0003672]
[1609554632964,6.13524545,29420.0,29408.0,0.0003672]
[1609554633164,6.13524545,29420.0,29407.0,4.38313158]
[1609554633366,0.00041392,29419.0,29409.0,0.00036725]
[1609554633566,0.00041392,29419.0,29408.0,0.00036725]
[1609554633967,0.00041392,29419.0,29410.0,0.00036725]
[1609554634166,0.00041392,29419.0,29409.0,0.00036722]
[1609554634367,0.18043158,29410.0,29407.0,4.38313158]
[1609554634567,0.29503158,29410.0,29407.0,4.38313158]
[1609554634870,0.29503158,29410.0,29408.0,0.00036722]
[1609554639375,0.29503158,29410.0,29409.0,0.00036724]
[1609554639576,0.29503158,29410.0,29407.0,4.38313158]
[1609554639777,0.29503158,29410.0,29407.0,0.18043158]
[1609554639980,0.29503158,29410.0,29408.0,0.00036724]
[1609554642482,0.39833158,29410.0,29401.0,0.18079886]
[1609554642881,4.3923,29406.0,29402.0,0.00036731]
[1609554643281,4.3923,29406.0,29401.0,0.18043158]
[1609554643583,4.3923,29406.0,29393.0,6.54169732]
[1609554643982,4.4945,29406.0,29393.0,6.54169732]
[1609554644181,4.4945,29406.0,29394.0,0.00036747]
[1609554644383,0.18043158,29395.0,29394.0,0.00036747]
[1609554644986,1.29754158,29395.0,29394.0,0.00036747]
[1609554646988,0.29754158,29395.0,29394.0,0.00036747]
[1609554647989,0.29547433,29395.0,29394.0,0.00036747]
[1609554649388,4.11127433,29395.0,29394.0,0.00036747]
[1609554649890,4.11127433,29395.0,29389.0,0.00036752]
[1609554650192,4.11127433,29395.0,29394.0,0.00036754]
[1609554650389,4.11127433,29395.0,29390.0,0.00036756]
[1609554650589,0.18043158,29391.0,29390.0,0.00036756]
[1609554650790,0.89283158,29391.0,29389.0,0.00036756]
[1609554650989,0.89283158,29391.0,29390.0,0.00036756]
[1609554651589,0.89283158,29391.0,29389.0,0.00036756]
[1609554651789,0.89283158,29391.0,29390.0,0.00036756]
[1609554652290,0.89283158,29391.0,29389.0,0.00036756]
[1609554652491,0.89283158,29391.0,29390.0,0.00036756]
[1609554652891,0.89283158,29391.0,29389.0,0.00036756]
[1609554653091,1.89283158,29391.0,29390.0,0.00036756]
[1609554653592,1.89283158,29391.0,29389.0,0.00036756]
[1609554653792,1.89283158,29391.0,29390.0,0.00036756]
[1609554654193,1.89283158,29391.0,29389.0,0.00036756]
[1609554654392,1.89283158,29391.0,29390.0,0.00036758]
[1609554654894,1.89283158,29391.0,29389.0,0.00036758]
[1609554655296,1.89283158,29391.0,29390.0,0.00036758]
[1609554655695,1.89283158,29391.0,29389.0,0.00036758]
[1609554655895,1.89283158,29391.0,29390.0,0.00036758]
[1609554656396,1.89283158,29391.0,29386.0,0.00036758]
[1609554656595,1.7124,29391.0,29385.0,0.18043158]
[1609554656996,1.7124,29391.0,29386.0,0.00036759]
[1609554658500,0.18043158,29387.0,29386.0,0.00036759]
[1609554658902,4.73204158,29387.0,29386.0,0.00036759]
[1609554659099,5.73204158,29387.0,29379.0,0.00036762]
[1609554659499,5.73204158,29387.0,29375.0,7.17106164]
[1609554659698,5.73204158,29387.0,29380.0,0.00036763]
[1609554659899,5.73204158,29387.0,29376.0,0.00036763]
[1609554660299,5.73204158,29387.0,29381.0,0.00036763]
[1609554660499,0.18043158,29382.0,29377.0,0.18079921]
[1609554660700,0.18043158,29382.0,29377.0,0.18043158]
[1609554661004,0.18043158,29382.0,29378.0,0.00036764]
[1609554661802,0.17836329,29382.0,29378.0,0.00036764]
[1609554662002,4.9239,29379.0,29373.0,0.00036766]
[1609554662402,4.9239,29379.0,29368.0,5.0302]
[1609554662602,4.9239,29379.0,29374.0,0.00036765]
[1609554662802,4.9239,29379.0,29370.0,0.18043158]
[1609554663203,4.9239,29379.0,29375.0,0.00036765]
[1609554663404,4.9239,29379.0,29371.0,0.00036765]
[1609554663605,4.9239,29379.0,29376.0,0.00036765]
[1609554663803,4.9239,29379.0,29372.0,0.00036765]
[1609554664103,4.9239,29379.0,29371.0,0.00036765]
[1609554664504,4.9239,29379.0,29373.0,0.00036767]
[1609554664704,0.17044,29381.0,29372.0,0.00036767]
[1609554664905,0.17044,29381.0,29374.0,5.02536769]
[1609554665304,0.17044,29381.0,29374.0,5.025]
[1609554665504,0.17044,29381.0,29375.0,0.00036769]
[1609554666706,0.18043158,29376.0,29375.0,0.18079927]
[1609554668409,0.18043158,29376.0,29370.0,4.3898]
[1609554668709,0.18043158,29371.0,29370.0,4.57023158]
[1609554668911,0.28789158,29371.0,29370.0,4.57023158]
[1609554669211,0.28789158,29371.0,29370.0,4.5705993]
[1609554671513,0.28789158,29371.0,29370.0,5.5705993]
[1609554671714,0.10746,29371.0,29370.0,5.5705993]
[1609554671912,1.0,29377.0,29370.0,5.5705993]
[1609554672315,1.0,29377.0,29371.0,0.00036766]
[1609554672717,1.18043158,29377.0,29376.0,0.18043158]
[1609554673117,0.18043158,29377.0,29376.0,0.18079924]
[1609554675618,0.18043158,29377.0,29376.0,0.00036766]
[1609554676019,0.18043158,29377.0,29372.0,4.0124]
[1609554676218,0.18043158,29377.0,29376.0,0.0003677]
[1609554676518,0.18043158,29377.0,29373.0,0.0003677]
[1609554676720,0.18043158,29374.0,29372.0,4.0124]
[1609554677123,0.18043158,29374.0,29373.0,0.00036771]
[1609554679121,0.18043158,29374.0,29372.0,0.00036771]
[1609554679521,0.31871158,29374.0,29373.0,0.00036771]
[1609554679924,0.31871158,29374.0,29371.0,0.18043158]
[1609554679925,0.31871158,29374.0,29372.0,0.00036771]
[1609554680324,0.31871158,29374.0,29373.0,0.00036771]
[1609554680725,0.31871158,29374.0,29372.0,0.00036771]
[1609554681025,0.31871158,29374.0,29373.0,0.00036771]
[1609554681527,0.31871158,29374.0,29372.0,0.00036771]
[1609554681727,0.31871158,29374.0,29371.0,0.18043158]
[1609554682027,0.31871158,29374.0,29372.0,0.0003677]
[1609554686930,0.31871158,29374.0,29373.0,0.00036769]
[1609554687329,0.31871158,29374.0,29372.0,0.00036769]
[1609554687530,0.31871158,29374.0,29373.0,0.00036769]
[1609554687831,0.31871158,29374.0,29372.0,0.00036769]
[1609554688129,0.31871158,29374.0,29373.0,0.00036769]
[1609554688632,0.31871158,29374.0,29372.0,0.00036769]
[1609554689031,0.31871158,29374.0,29373.0,0.00036769]
[1609554689433,0.31871158,29374.0,29372.0,0.00036769]
[1609554689632,0.31871158,29374.0,29373.0,0.00036769]
[1609554690035,0.31871158,29374.0,29372.0,0.00036769]
[1609554690232,0.31871158,29374.0,29373.0,0.00036769]
[1609554690735,0.31871158,29374.0,29372.0,0.00036769]
[1609554690933,0.31871158,29374.0,29373.0,0.00036769]
[1609554691333,0.31871158,29374.0,29372.0,0.00036769]
[1609554691533,0.31871158,29374.0,29373.0,0.00036769]
[1609554692033,0.31871158,29374.0,29372.0,0.00036769]
[1609554692335,0.31871158,29374.0,29373.0,0.00036769]
[1609554692835,0.31871158,29374.0,29372.0,0.04062734]
[1609554693035,0.31871158,29374.0,29373.0,0.00036769]
[1609554693337,0.31871158,29374.0,29372.0,0.04062734]
[1609554693636,0.31871158,29374.0,29373.0,0.00036769]
[1609554694135,0.31871158,29374.0,29372.0,0.04062734]
[1609554694435,0.31871158,29374.0,29373.0,0.00036769]
[1609554694937,0.31871158,29374.0,29372.0,0.04062734]
[1609554695136,0.31871158,29374.0,29373.0,0.00036769]
[1609554695536,0.31871158,29374.0,29372.0,0.04062736]
[1609554695737,0.31871158,29374.0,29373.0,0.00036771]
[1609554696339,0.31871158,29374.0,29372.0,0.04062736]
[1609554696540,0.31871158,29374.0,29373.0,0.00036771]
[1609554697142,0.31871158,29374.0,29372.0,0.04062736]
[1609554697341,0.31871158,29374.0,29373.0,0.00036771]
[1609554697842,0.31871158,29374.0,29372.0,0.00036771]
[1609554698043,0.31871158,29374.0,29373.0,0.00036771]
[1609554698344,0.31871158,29374.0,29372.0,0.00036771]
[1609554698744,0.31871158,29374.0,29373.0,0.00036771]
[1609554699145,0.31871158,29374.0,29372.0,0.00036773]
[1609554699445,0.31871158,29374.0,29373.0,0.00036773]
[1609554699946,0.31871158,29374.0,29372.0,0.00036773]
[1609554700145,0.31871158,29374.0,29373.0,0.00036773]
[1609554700545,0.31871158,29374.0,29372.0,0.04062921]
[1609554700745,0.31871158,29374.0,29372.0,0.04026148]
[1609554700945,0.31871158,29374.0,29371.0,0.18043158]
[1609554701345,0.31871158,29374.0,29372.0,0.00036772]
[1609554703347,0.31871158,29374.0,29372.0,0.04063052]
[1609554704249,0.31871158,29374.0,29372.0,0.00036772]
[1609554704449,0.31871158,29374.0,29373.0,0.00036523]
[1609554704952,0.31871158,29374.0,29372.0,0.03949151]
[1609554705150,0.31871158,29374.0,29373.0,0.00036523]
[1609554705550,0.31871158,29374.0,29372.0,0.03949151]
[1609554705751,0.31871158,29374.0,29373.0,0.00036523]
[1609554706353,0.31871158,29374.0,29372.0,0.03949619]
[1609554706552,0.31871158,29374.0,29373.0,0.00036526]
[1609554706752,1.01691158,29374.0,29373.0,0.00036526]
[1609554707155,2.01691158,29374.0,29373.0,0.00036526]
[1609554707358,2.01691158,29374.0,29372.0,0.00036526]
[1609554707557,2.01691158,29374.0,29373.0,0.00036526]
[1609554708057,2.01691158,29374.0,29363.0,0.03949651]
[1609554708860,1.83648,29374.0,29367.0,0.18043158]
[1609554709059,1.0,29373.0,29367.0,0.18043158]
[1609554709458,1.0,29373.0,29368.0,0.03949667]
[1609554710862,0.18043158,29369.0,29368.0,0.03949667]
[1609554712566,5.75393158,29369.0,29363.0,0.0394957]
[1609554712966,5.5735,29369.0,29368.0,0.00036528]
[1609554713166,5.5735,29369.0,29364.0,0.03949617]
[1609554713368,5.5735,29369.0,29368.0,0.0003653]
[1609554713567,5.5735,29369.0,29365.0,0.0003653]
[1609554713975,0.00041443,29368.0,29363.0,0.00036532]
[1609554714171,0.14640443,29368.0,29366.0,0.00036535]
[1609554714370,0.14640443,29368.0,29364.0,0.00036535]
[1609554714770,0.14599,29368.0,29363.0,0.00036535]
[1609554714972,0.73153158,29364.0,29362.0,3.4881]
[1609554715572,0.73153158,29364.0,29363.0,0.00036536]
[1609554717076,1.73153158,29364.0,29363.0,0.00036536]
[1609554719181,0.73153158,29364.0,29363.0,0.00036536]
[1609554719977,0.73153158,29364.0,29363.0,0.0003654]
[1609554722281,0.18043158,29364.0,29363.0,0.0003654]
[1609554722884,0.98693158,29364.0,29363.0,0.0003654]
[1609554724186,0.98693158,29364.0,29362.0,3.4881]
[1609554724886,0.18043158,29364.0,29362.0,3.4881]
[1609554725086,1.0,29363.0,29362.0,3.4881]
[1609554725586,1.0,29363.0,29362.0,3.48846545]
[1609554727089,0.18043158,29364.0,29362.0,3.48846545]
[1609554727489,0.18043158,29364.0,29362.0,8.33206545]
[1609554727689,0.18043158,29364.0,29363.0,0.00036541]
[1609554728990,0.18043158,29364.0,29363.0,0.18079699]
[1609554729190,0.18043158,29364.0,29363.0,1.18079699]
[1609554730692,0.18043158,29364.0,29363.0,0.18079699]
[1609554730893,0.18043158,29364.0,29363.0,0.00036541]
[1609554739203,1.18043158,29364.0,29363.0,0.00036541]
[1609554741106,0.18043158,29364.0,29363.0,0.00036541]
[1609554743611,0.18043158,29364.0,29363.0,5.62456541]
[1609554743809,0.18043158,29364.0,29363.0,6.62456541]
[1609554744209,0.18043158,29364.0,29363.0,6.66370901]
[1609554744510,0.18043158,29364.0,29363.0,6.62456541]
[1609554744812,0.18043158,29364.0,29363.0,6.6637084]
[1609554745412,0.18043158,29364.0,29363.0,6.62456541]
[1609554746114,0.18043158,29364.0,29363.0,6.66370847]
[1609554746312,0.18043158,29364.0,29363.0,1.03950847]
[1609554746513,0.18043158,29364.0,29363.0,4.66600847]
[1609554747013,0.18043158,29364.0,29363.0,4.62686541]
[1609554750215,0.18043158,29364.0,29363.0,0.00036541]
[1609554751017,1.18043158,29364.0,29363.0,0.00036541]
[1609554753119,0.18043158,29364.0,29363.0,0.00036541]
[1609554755021,1.18043158,29364.0,29363.0,0.00036541]
[1609554758227,1.18084613,29364.0,29363.0,0.00036541]
[1609554760633,1.18043158,29364.0,29363.0,0.00036541]
[1609554762237,6.71363158,29364.0,29363.0,0.00036541]
[1609554762437,6.71404614,29364.0,29363.0,0.00036541]
[1609554763038,1.18043158,29364.0,29363.0,0.00036541]
[1609554763238,1.18043158,29364.0,29362.0,3.4137]
[1609554764240,1.18043158,29364.0,29362.0,3.0865]
[1609554764440,1.18043158,29364.0,29362.0,2.8815]
[1609554764642,2.52707142,29364.0,29362.0,2.8815]
[1609554765041,5.27,29363.0,29362.0,2.8815]
[1609554765241,6.88199429,29363.0,29362.0,2.8815]
[1609554765644,6.88199429,29363.0,29362.0,2.88186468]
[1609554765843,1.61199429,29363.0,29362.0,2.88186468]
[1609554770454,1.02062177,29363.0,29362.0,2.88186468]
[1609554770854,1.0,29363.0,29362.0,2.88186468]
[1609554771054,0.20106849,29364.0,29362.0,2.88186468]
[1609554771354,0.20106849,29364.0,29363.0,0.00036466]
[1609554771955,0.18043158,29364.0,29363.0,0.00036466]
[1609554773157,1.18043158,29364.0,29363.0,0.00036466]
[1609554777065,0.18043158,29364.0,29363.0,0.00036466]
[1609554785076,1.18043158,29364.0,29363.0,0.00036466]
[1609554787080,0.18043158,29364.0,29363.0,0.00036466]
[1609554789083,1.18043158,29364.0,29363.0,0.00036466]
[1609554793489,1.18043158,29364.0,29363.0,1.00036466]
[1609554795091,0.18043158,29364.0,29363.0,1.00036466]
[1609554802902,0.1808462,29364.0,29363.0,1.0391795]
[1609554804204,0.18043158,29364.0,29363.0,1.0391795]
[1609554807506,0.44061102,29367.0,29366.0,5.6848]
[1609554807707,1.14599,29368.0,29366.0,6.6848]
[1609554807906,0.00041454,29367.0,29366.0,6.68516472]
[1609554808106,0.10874454,29367.0,29366.0,6.8655963]
[1609554808306,0.10874454,29367.0,29366.0,6.86523158]
[1609554808506,0.10833,29367.0,29366.0,6.90441758]
[1609554808908,0.10833,29367.0,29366.0,7.00781758]
[1609554810109,0.10833,29367.0,29366.0,8.00781758]
[1609554810308,0.45420483,29370.0,29366.0,8.00781758]
[1609554810509,0.22620483,29370.0,29366.0,8.00781758]
[1609554810709,0.22620483,29370.0,29366.0,7.90441758]
[1609554810909,0.22620483,29370.0,29367.0,0.03917132]
[1609554812012,0.22620483,29370.0,29369.0,0.18043158]
[1609554812213,0.22620483,29370.0,29369.0,2.18043158]
[1609554812411,0.22620483,29370.0,29369.0,2.21960356]
[1609554813112,0.22620483,29370.0,29369.0,2.18079616]
[1609554813313,0.88349283,29374.0,29369.0,2.18043158]
[1609554813314,0.13828,29374.0,29369.0,2.18043158]
[1609554813512,0.18043158,29377.0,29369.0,2.18043158]
[1609554813712,0.0004144,29373.0,29370.0,0.0391718]
[1609554814113,0.0004144,29376.0,29372.0,0.18043158]
[1609554814314,0.18043158,29377.0,29373.0,1.0]
[1609554814513,0.0004144,29375.0,29373.0,1.03917155]
[1609554814815,0.0004144,29376.0,29374.0,0.03917157]
[1609554815013,0.18043158,29377.0,29374.0,0.03917157]
[1609554815314,0.00041439,29375.0,29374.0,0.03917157]
[1609554815515,0.00041439,29376.0,29374.0,0.03917157]
[1609554816114,0.00041439,29376.0,29375.0,0.18043158]
[1609554816414,0.00041439,29376.0,29375.0,1.18043158]
[1609554816615,0.00041439,29376.0,29375.0,1.18079616]
[1609554817418,0.00041439,29376.0,29375.0,1.21960354]
[1609554818119,0.18043158,29377.0,29375.0,1.21960354]
[1609554818421,0.18043158,29377.0,29376.0,0.03918781]
[1609554818720,0.18084597,29377.0,29376.0,0.03918781]
[1609554819819,0.18043158,29377.0,29376.0,1.03918781]
[1609554820021,0.18084598,29377.0,29376.0,0.03918781]
[1609554820621,0.18084598,29377.0,29373.0,0.0391932]
[1609554820821,0.18084598,29377.0,29376.0,0.0391914]
[1609554821224,0.18043158,29377.0,29374.0,0.03919165]
[1609554821423,0.18084601,29377.0,29376.0,0.03919208]
[1609554821622,0.00041443,29376.0,29375.0,0.03919201]
[1609554821922,0.18084601,29377.0,29375.0,0.5848]
[1609554822122,0.18043158,29377.0,29375.0,0.62399075]
[1609554822322,0.18043158,29377.0,29375.0,1.62399075]
[1609554822523,0.18043158,29377.0,29376.0,0.03919053]
[1609554822925,0.18084599,29377.0,29376.0,0.03919053]
[1609554824126,0.18084599,29377.0,29376.0,0.21962211]
[1609554824328,0.18084599,29377.0,29376.0,1.21962211]
[1609554825330,0.18084599,29377.0,29376.0,0.21962211]
[1609554826132,0.18043158,29377.0,29376.0,0.18079621]
[1609554827032,0.18043158,29377.0,29376.0,0.18079575]
[1609554829036,0.18043158,29377.0,29376.0,1.18079575]
[1609554829236,0.14587158,29381.0,29380.0,4.986]
[1609554829436,1.0,29383.0,29380.0,5.986]
[1609554829837,0.00041438,29382.0,29381.0,0.00036417]
[1609554830537,0.00041436,29386.0,29381.0,0.00036417]
[1609554830737,0.00041436,29386.0,29381.0,0.18079575]
[1609554831137,0.00041436,29386.0,29382.0,0.00036415]
[1609554832642,0.00041436,29386.0,29385.0,0.18043158]
[1609554832844,0.00041436,29386.0,29385.0,1.18043158]
[1609554833042,0.00041436,29386.0,29385.0,5.53873158]
[1609554833242,0.00041436,29386.0,29385.0,5.53909571]
[1609554833442,0.14191,29387.0,29385.0,5.53909571]
[1609554833842,1.0,29389.0,29385.0,5.57771189]
[1609554834041,1.0,29389.0,29386.0,0.00036409]
[1609554834242,0.00041428,29388.0,29386.0,0.00036409]
[1609554834543,0.10585,29388.0,29386.0,0.00036409]
[1609554834744,0.10585,29388.0,29386.0,0.03897774]
[1609554835144,0.10585,29388.0,29386.0,0.00036409]
[1609554835347,0.10585,29388.0,29387.0,0.00036407]
[1609554835846,0.10626428,29388.0,29386.0,0.00036407]
[1609554836248,0.10626428,29388.0,29387.0,0.00036407]
[1609554836447,0.10585,29388.0,29387.0,0.00036407]
[1609554836647,0.10585,29388.0,29386.0,0.03897645]
[1609554836848,0.10585,29388.0,29387.0,0.00036407]
[1609554837148,0.10585,29388.0,29386.0,0.00036407]
[1609554837551,0.10585,29388.0,29387.0,0.00036407]
[1609554838053,0.10585,29388.0,29386.0,0.00036407]
[1609554838252,0.10585,29388.0,29387.0,0.00036407]
[1609554838753,0.10585,29388.0,29386.0,0.00036407]
[1609554838953,0.10585,29388.0,29387.0,0.00036407]
[1609554839253,0.10585,29388.0,29386.0,0.00036407]
[1609554839455,0.10585,29388.0,29387.0,0.00036407]
[1609554839954,1.0,29396.0,29386.0,0.00036407]
[1609554840154,1.0,29397.0,29387.0,0.00036407]
[1609554840556,1.0,29397.0,29386.0,0.00036407]
[1609554840754,0.00472251,29396.0,29386.0,0.00036407]
[1609554840955,0.00472251,29396.0,29388.0,0.00036407]
[1609554841156,0.00430823,29396.0,29387.0,0.00036407]
[1609554841356,0.00430823,29396.0,29389.0,0.00036407]
[1609554841757,0.00430823,29396.0,29388.0,0.00036405]
[1609554841957,0.00430823,29396.0,29390.0,0.00036405]
[1609554842159,1.0,29395.0,29389.0,0.00036405]
[1609554842359,1.0,29395.0,29391.0,0.00036405]
[1609554842659,1.0,29395.0,29394.0,0.18043158]
[1609554845559,1.0,29395.0,29384.0,4.4275]
[1609554846159,4.59132031,29396.0,29385.0,0.0003641]
[1609554846660,0.00430097,29393.0,29385.0,0.0003641]
[1609554846860,0.00430097,29393.0,29388.0,0.18043158]
[1609554847361,0.0043008,29391.0,29388.0,0.18043158]
[1609554847561,0.0043008,29391.0,29389.0,0.00036412]
[1609554847761,0.1241608,29391.0,29389.0,0.00036412]
[1609554848162,1.0,29390.0,29389.0,0.00036412]
[1609554848765,1.18043158,29390.0,29389.0,0.00036412]
[1609554852368,1.18043158,29390.0,29389.0,3.94766412]
[1609554854171,1.18043158,29390.0,29389.0,0.00036412]
[1609554856076,0.18043158,29390.0,29389.0,0.00036412]
[1609554857176,0.1808459,29390.0,29389.0,0.00036412]
[1609554858078,1.1808459,29390.0,29389.0,0.00036412]
[1609554859379,1.1808459,29390.0,29385.0,0.00036412]
[1609554859579,1.1808459,29390.0,29389.0,0.00036412]
[1609554859780,0.00041432,29389.0,29386.0,0.00036412]
[1609554859981,1.1808459,29390.0,29389.0,0.00036412]
[1609554860382,1.1808459,29390.0,29385.0,0.00036412]
[1609554860582,1.1808459,29390.0,29389.0,0.00036412]
[1609554860784,1.1808459,29390.0,29386.0,0.00036412]
[1609554860985,0.00041432,29389.0,29388.0,0.18043158]
[1609554861384,0.00041432,29389.0,29388.0,0.1807957]
[1609554862087,1.00041432,29389.0,29388.0,0.1807957]
[1609554862885,1.1808459,29389.0,29388.0,0.1807957]
[1609554864788,1.1808459,29389.0,29388.0,0.00036412]
[1609554865289,1.1808459,29389.0,29385.0,0.00036412]
[1609554865690,1.1808459,29389.0,29388.0,0.00036412]
[1609554865891,1.18043158,29389.0,29386.0,0.00036412]
[1609554866091,1.18084591,29389.0,29388.0,0.00036412]
[1609554866291,1.18043158,29389.0,29387.0,0.00036412]
[1609554866592,1.18043158,29389.0,29385.0,0.00036412]
[1609554866893,1.0,29389.0,29388.0,0.00036412]
[1609554867095,1.0,29389.0,29386.0,0.00036412]
[1609554867493,0.00431824,29388.0,29385.0,0.00036412]
[1609554867692,0.00431824,29388.0,29387.0,0.0003641]
[1609554867892,0.00431824,29388.0,29384.0,0.18043158]
[1609554867893,0.00041433,29387.0,29386.0,0.0003641]
[1609554868292,0.00041433,29387.0,29385.0,0.0003641]
[1609554868493,0.00041433,29387.0,29386.0,0.0003641]
[1609554868892,0.18084591,29387.0,29386.0,0.0003641]
[1609554869092,0.18084591,29387.0,29385.0,0.0003641]
[1609554869292,0.18084591,29387.0,29386.0,0.0003641]
[1609554869492,4.67633158,29387.0,29386.0,0.0003641]
[1609554869894,4.67674594,29387.0,29374.0,0.03897761]
[1609554870092,10.67674594,29387.0,29386.0,0.00036412]
[1609554870293,10.67633158,29387.0,29375.0,0.00036417]
[1609554870694,10.676746,29387.0,29386.0,0.00036417]
[1609554870895,0.00041442,29386.0,29376.0,0.00036417]
[1609554871094,13.43430608,29387.0,29386.0,0.00036417]
[1609554871295,13.43389166,29387.0,29386.0,0.00036417]
[1609554871495,0.00041442,29385.0,29377.0,0.00036417]
[1609554871696,14.17923454,29387.0,29374.0,0.18043158]
[1609554871896,0.00041442,29384.0,29378.0,0.00036419]
[1609554872295,0.17136,29385.0,29375.0,0.00036419]
[1609554872497,0.00041442,29383.0,29379.0,0.00036419]
[1609554872696,0.00041445,29384.0,29376.0,0.00036419]
[1609554872896,0.18043158,29377.0,29373.0,4.8282]
[1609554873298,0.34347158,29377.0,29374.0,0.00036423]
[1609554873499,3.8279,29376.0,29374.0,0.00036423]
[1609554873702,3.8279,29376.0,29369.0,0.00036423]
[1609554874197,1.17446,29370.0,29369.0,0.00036423]
[1609554874899,1.35489158,29370.0,29369.0,0.00036423]
[1609554876601,1.35489158,29370.0,29369.0,0.00036426]
[1609554877905,1.35489158,29370.0,29368.0,0.18043158]
[1609554878308,1.35489158,29370.0,29369.0,0.00036424]
[1609554879307,6.30439158,29370.0,29369.0,0.00036424]
[1609554879506,6.30439158,29370.0,29367.0,0.00036427]
[1609554880209,1.0,29368.0,29367.0,0.00036427]
[1609554883011,1.0,29368.0,29367.0,0.18079585]
[1609554884213,0.35489158,29370.0,29367.0,0.18079585]
[1609554884513,0.35489158,29370.0,29368.0,0.00036427]
[1609554886118,1.0,29369.0,29368.0,0.00036427]
[1609554896125,0.35489158,29370.0,29368.0,0.00036427]
[1609554897828,0.35489158,29370.0,29368.0,0.62146427]
[1609554898025,0.35489158,29370.0,29368.0,0.03962555]
[1609554898229,0.35489158,29370.0,29369.0,5.19492664]
[1609554898426,0.17446,29370.0,29369.0,6.19492664]
[1609554898626,1.0,29376.0,29369.0,6.19492664]
[1609554899127,1.0,29376.0,29370.0,0.03962637]
[1609554899327,1.0,29376.0,29375.0,0.18043158]
[1609554899728,1.0,29376.0,29375.0,0.18079721]
[1609554901327,1.18043158,29376.0,29375.0,0.18079721]
[1609554901827,6.15313158,29376.0,29375.0,0.18079721]
[1609554902427,1.18043158,29376.0,29375.0,0.18079721]
[1609554904130,0.18043158,29376.0,29375.0,1.18079721]
[1609554904532,0.18043158,29376.0,29375.0,5.58279721]
[1609554907234,0.18043158,29376.0,29375.0,4.58279721]
[1609554908235,1.18043158,29376.0,29375.0,4.58279721]
[1609554910238,0.18043158,29376.0,29375.0,4.58279721]
[1609554910937,0.18043158,29376.0,29375.0,0.18079721]
[1609554912143,1.18043158,29376.0,29375.0,0.18079721]
[1609554913441,1.75823158,29376.0,29375.0,0.18079721]
[1609554922557,1.75823158,29376.0,29375.0,0.00036563]
[1609554922858,1.75823158,29376.0,29369.0,0.03962568]
[1609554923256,1.75864609,29376.0,29375.0,0.00036565]
[1609554923457,1.75823158,29376.0,29370.0,0.00036565]
[1609554923657,1.75864608,29376.0,29375.0,0.00036565]
[1609554923856,1.5778,29376.0,29371.0,0.00036565]
[1609554924157,1.5778,29376.0,29369.0,0.0396257]
[1609554924358,1.0,29376.0,29369.0,0.0396257]
[1609554924558,5.1349,29375.0,29372.0,0.00036565]
[1609554924759,5.1349,29375.0,29370.0,0.00036565]
[1609554924962,5.1349,29375.0,29373.0,0.00036565]
[1609554925259,5.1349,29375.0,29371.0,0.00036565]
[1609554925460,5.1349,29375.0,29374.0,0.00036565]
[1609554925761,5.31533158,29375.0,29372.0,0.00036565]
[1609554925960,5.31533158,29375.0,29374.0,0.00036565]
[1609554926361,5.31533158,29375.0,29369.0,0.0396257]
[1609554926561,5.31533158,29375.0,29374.0,0.00036565]
[1609554926762,5.31533158,29375.0,29370.0,0.00036565]
[1609554927161,5.31533158,29375.0,29369.0,0.0396257]
[1609554927361,5.31533158,29375.0,29371.0,0.00036565]
[1609554927563,5.31533158,29375.0,29370.0,0.00036567]
[1609554927762,0.18043158,29371.0,29370.0,0.00036567]
[1609554927961,0.18043158,29371.0,29369.0,0.03926005]
[1609554928162,1.18043158,29371.0,29370.0,0.00036567]
[1609554928363,1.31614158,29371.0,29369.0,0.03962572]
[1609554928665,1.31614158,29371.0,29370.0,0.00036567]
[1609554929164,1.31614158,29371.0,29369.0,0.03926005]
[1609554929165,1.31614158,29371.0,29369.0,0.03962572]
[1609554929565,1.31614158,29371.0,29370.0,0.00036567]
[1609554929965,1.31614158,29371.0,29369.0,0.03962572]
[1609554930168,1.31614158,29371.0,29370.0,0.00036567]
[1609554930467,1.31614158,29371.0,29369.0,0.03962572]